bitfinex/quotes_ETHUSD_20240610
["timestamp","ask_amount","ask_price","bid_price","bid_amount"]
[1718021207667,27.64776758,3670.2,3668.8,0.09602629]
[1718021207878,2.3734,3668.9,3668.8,0.09602629]
[1718021208180,13.58635,3668.9,3668.8,0.09602629]
[1718021208338,13.81965053,3668.9,3668.8,0.09602629]
[1718021208975,11.44625053,3668.9,3668.8,0.09602629]
[1718021214148,11.99625053,3668.9,3668.8,0.09602629]
[1718021214847,11.44625053,3668.9,3668.8,0.09602629]
[1718021215070,11.12881053,3668.9,3668.8,0.09602629]
[1718021215250,8.40320053,3668.9,3668.8,0.89702629]
[1718021215453,8.40320053,3668.9,3668.8,0.09602629]
[1718021215648,8.40320053,3668.9,3668.8,0.89702629]
[1718021216946,8.40320053,3668.9,3668.8,0.09602629]
[1718021221395,8.40320053,3668.9,3668.8,3.86741992]
[1718021221568,8.1699,3668.9,3668.8,3.86741992]
[1718021221764,8.40320053,3668.9,3668.8,6.59309992]
[1718021221977,8.40320053,3668.9,3668.8,9.31877992]
[1718021222350,8.40320053,3668.9,3668.8,12.31877992]
[1718021222991,8.1699,3668.9,3668.8,12.31877992]
[1718021223179,8.40320053,3668.9,3668.8,12.31877992]
[1718021223793,8.40320053,3668.9,3668.8,9.59309992]
[1718021224172,8.40320053,3668.9,3668.8,8.79209992]
[1718021224376,8.40320053,3668.9,3668.8,9.59309992]
[1718021225058,8.40320053,3668.9,3668.8,12.31877992]
[1718021227154,8.40320053,3668.9,3668.8,15.04445992]
[1718021227364,8.1699,3668.9,3668.8,15.04445992]
[1718021227585,8.40320053,3668.9,3668.8,15.04445992]
[1718021228113,8.40320053,3668.9,3668.8,15.90052663]
[1718021228397,8.1699,3668.9,3668.8,12.31877992]
[1718021228608,8.40320053,3668.9,3668.8,13.17300648]
[1718021229012,8.40320053,3668.9,3668.8,15.04445992]
[1718021229609,8.1699,3668.9,3668.8,15.04445992]
[1718021229985,8.40320053,3668.9,3668.8,15.04445992]
[1718021230195,8.40320053,3668.9,3668.8,15.89868648]
[1718021230810,8.1699,3668.9,3668.8,15.89868648]
[1718021231013,8.40320053,3668.9,3668.8,15.89868648]
[1718021231220,8.40320053,3668.9,3668.8,15.89861114]
[1718021231517,5.3e-07,3668.9,3668.8,15.89861114]
[1718021231674,5.99e-06,3668.9,3668.8,16.64861114]
[1718021231879,2.2813,3670.7,3670.2,2.72459]
[1718021232074,2.9173176,3670.7,3670.3,0.801]
[1718021232301,0.21257344,3670.6,3670.3,0.801]
[1718021232879,2.7241,3671.0,3670.3,0.801]
[1718021233107,0.21257344,3670.5,3670.3,0.801]
[1718021233305,2.7241,3671.0,3670.3,0.801]
[1718021233501,0.21257344,3670.4,3670.3,0.801]
[1718021233704,0.51578,3670.9,3670.3,0.801]
[1718021233877,0.21257344,3670.4,3670.3,0.801]
[1718021234081,0.51578,3670.9,3670.3,0.801]
[1718021234315,0.21257344,3670.4,3670.3,0.801]
[1718021234490,0.51578,3670.9,3670.3,0.801]
[1718021234691,0.21257344,3670.4,3670.3,0.801]
[1718021234891,0.567358,3670.8,3670.3,0.801]
[1718021235090,0.21257344,3670.4,3670.3,0.801]
[1718021235318,0.567358,3670.8,3670.3,0.801]
[1718021235319,0.567358,3670.8,3670.4,2.72449]
[1718021235495,2.4337,3671.1,3670.6,0.801]
[1718021236301,2.4337,3671.1,3670.6,3.52531]
[1718021236500,2.4337,3671.1,3670.8,0.801]
[1718021237508,2.72388,3671.3,3670.8,0.801]
[1718021237984,2.4229,3671.4,3670.8,0.801]
[1718021238350,0.814655,3671.3,3671.1,0.801]
[1718021238509,0.814655,3671.3,3670.8,2.72417]
[1718021238818,0.814655,3671.3,3670.9,0.801]
[1718021238983,0.21257344,3671.2,3670.9,0.801]
[1718021239177,0.814655,3671.3,3670.9,0.801]
[1718021239418,0.53632894,3671.2,3670.9,0.801]
[1718021241235,0.53632894,3671.2,3670.8,2.72417]
[1718021245230,2.72414,3670.9,3670.3,7.28]
[1718021245403,2.72414,3670.9,3670.3,0.801]
[1718021245603,2.72414,3670.9,3670.2,2.7246]
[1718021245846,2.72414,3670.9,3670.3,0.801]
[1718021245847,0.80162744,3670.8,3670.3,0.801]
[1718021246015,8.97482744,3670.8,3670.3,0.801]
[1718021249132,5.07851,3670.7,3669.9,10.0048]
[1718021249462,8.1732,3670.6,3670.0,0.801]
[1718021249827,0.21257344,3670.5,3670.0,0.801]
[1718021250022,1.61790718,3670.5,3670.0,0.801]
[1718021252966,1.61790718,3670.5,3669.9,10.0048]
[1718021253154,1.61790718,3670.5,3670.1,0.801]
[1718021270025,8.1732,3670.4,3669.9,10.8058]
[1718021270372,0.21257344,3670.3,3669.9,10.8058]
[1718021273208,0.21257344,3670.3,3669.9,3.5258]
[1718021279717,0.21257344,3670.3,3669.9,2.7248]
[1718021279895,0.21257344,3670.3,3669.9,3.5258]
[1718021280825,1.32359378,3670.3,3669.9,3.5258]
[1718021284702,1.32359378,3670.3,3670.1,2.72471]
[1718021284906,1.32359378,3670.3,3670.1,3.52571]
[1718021290237,0.21257344,3670.3,3670.1,3.52571]
[1718021294408,0.21257344,3670.3,3670.1,2.72471]
[1718021294608,0.21257344,3670.3,3670.1,3.52571]
[1718021296457,0.21257344,3670.3,3670.1,2.72471]
[1718021300451,0.21257344,3670.3,3670.1,3.52571]
[1718021306852,0.21257344,3670.3,3670.1,2.72471]
[1718021322368,0.21257344,3670.3,3670.1,3.52571]
[1718021322742,0.21257344,3670.3,3670.2,2.4761]
[1718021326973,0.21257344,3670.3,3670.1,3.52571]
[1718021346473,0.21257344,3670.3,3670.2,0.801]
[1718021348901,0.21257344,3670.3,3670.1,2.72471]
[1718021349074,0.21257344,3670.3,3670.2,0.801]
[1718021374695,0.21257344,3670.3,3670.2,3.6876977]
[1718021375179,8.1732,3670.4,3670.2,3.9819795]
[1718021375292,8.1732,3670.4,3670.3,9.01202031]
[1718021375499,8.1732,3670.4,3670.3,9.30625095]
[1718021376199,8.1732,3670.4,3670.3,8.16227064]
[1718021376392,8.1732,3670.4,3670.3,8.77076144]
[1718021376799,8.1732,3670.4,3670.3,8.7707549]
[1718021376999,8.1732,3670.4,3670.3,9.91473521]
[1718021377342,8.1732,3670.4,3670.3,8.7707549]
[1718021378036,8.1732,3670.4,3670.3,8.7707545]
[1718021378334,8.1732,3670.4,3670.3,9.62729764]
[1718021380252,8.1732,3670.4,3670.3,8.7707545]
[1718021385952,8.1732,3670.4,3670.3,8.77075435]
[1718021386860,8.1732,3670.4,3670.3,8.4765308]
[1718021387172,8.1732,3670.4,3670.3,8.77075426]
[1718021387956,8.1732,3670.4,3670.3,11.49532426]
[1718021388326,8.1732,3670.4,3670.3,14.49532426]
[1718021388524,2.4438,3672.3,3671.7,2.72351]
[1718021388726,0.21257344,3672.2,3671.7,3.52451]
[1718021388944,2.3317,3672.1,3671.7,3.52451]
[1718021389348,0.21257344,3672.0,3671.7,3.52451]
[1718021389659,2.4241,3671.9,3671.7,2.72351]
[1718021389859,2.63667344,3671.9,3671.7,2.72351]
[1718021391270,2.90034078,3671.9,3671.7,2.72351]
[1718021392551,2.90034078,3671.9,3671.4,2.72368]
[1718021392763,2.90034078,3671.9,3671.6,0.801]
[1718021394673,2.90034078,3671.9,3671.8,0.801]
[1718021394832,2.90034078,3671.9,3671.6,3.52455]
[1718021398390,0.29003408,3671.8,3671.3,2.72375]
[1718021398600,2.4093,3671.7,3671.4,0.801]
[1718021398881,0.21257344,3671.6,3671.4,0.801]
[1718021400939,0.21257344,3671.6,3671.3,2.72375]
[1718021401140,0.21257344,3671.6,3671.4,0.801]
[1718021401338,2.97833675,3671.5,3671.0,2.72399]
[1718021401542,2.4148,3671.5,3671.0,2.72399]
[1718021401943,0.21257344,3671.4,3671.2,0.801]
[1718021402579,0.21257344,3671.4,3671.0,2.72399]
[1718021402776,0.21257344,3671.4,3671.2,0.801]
[1718021403075,2.93633344,3671.4,3670.7,2.7242]
[1718021403377,2.7239,3671.2,3670.9,0.801]
[1718021403893,0.21257344,3671.1,3670.9,0.801]
[1718021405160,0.21257344,3671.1,3670.7,2.7242]
[1718021405369,0.21257344,3671.1,3670.9,0.801]
[1718021406089,0.21257344,3671.1,3670.7,2.7242]
[1718021406385,0.21257344,3671.1,3670.9,0.801]
[1718021412482,0.21257344,3671.1,3670.8,0.801]
[1718021416710,0.21257344,3671.1,3671.0,0.801]
[1718021417114,5.14905,3671.5,3671.0,0.801]
[1718021417316,0.21257344,3671.1,3670.8,2.7242]
[1718021417609,5.14905,3671.5,3671.0,0.801]
[1718021417767,5.14905,3671.5,3671.2,0.801]
[1718021419922,2.3914,3671.8,3671.4,0.801]
[1718021420077,2.3914,3672.0,3671.4,0.801]
[1718021420409,0.511469,3671.9,3671.4,0.801]
[1718021420712,2.3914,3672.0,3671.4,0.801]
[1718021421127,8.1706,3671.9,3671.4,0.801]
[1718021421623,8.1706,3671.9,3671.6,0.801]
[1718021424204,0.21257344,3671.8,3671.6,0.801]
[1718021424411,8.1706,3671.7,3671.6,0.801]
[1718021425320,8.38317344,3671.7,3671.6,0.801]
[1718021436414,8.38317344,3671.7,3671.6,3.5246]
[1718021459946,8.38317344,3671.7,3671.6,5.9569]
[1718021463553,8.38317344,3671.7,3671.6,6.55259]
[1718021470455,8.38317344,3671.7,3671.6,4.12029]
[1718021470672,8.38317344,3671.7,3671.6,6.45199]
[1718021470967,8.1706,3671.7,3671.6,12.17559]
[1718021471153,8.1706,3671.7,3671.6,13.03047759]
[1718021471365,8.42125805,3671.7,3671.6,13.32465738]
[1718021472234,8.42125805,3671.7,3671.6,12.46976979]
[1718021473468,8.42125805,3671.7,3671.6,15.19336979]
[1718021473869,0.25065805,3671.7,3671.6,15.19336979]
[1718021474047,2.72255,3673.1,3672.5,2.72287]
[1718021474244,2.72255,3673.1,3672.8,0.801]
[1718021474245,0.25065805,3673.0,3672.8,0.801]
[1718021475332,2.4017,3673.2,3672.8,0.801]
[1718021475535,0.25065805,3672.9,3672.8,0.801]
[1718021475763,2.4017,3673.2,3672.8,0.801]
[1718021476237,0.25065805,3673.1,3672.8,0.801]
[1718021483193,2.7221,3673.7,3673.0,0.801]
[1718021483343,5.1245,3673.7,3673.3,0.801]
[1718021484051,8.1666,3673.6,3673.3,0.801]
[1718021484245,1.57976805,3673.5,3672.9,2.72263]
[1718021484450,8.1666,3673.4,3673.1,0.801]
[1718021484978,0.25065805,3673.3,3673.1,0.801]
[1718021485148,0.25065805,3673.3,3672.9,2.72263]
[1718021490169,2.52805805,3673.3,3672.9,2.72263]
[1718021497709,2.52805805,3673.3,3672.8,0.801]
[1718021500499,2.4811,3673.0,3672.5,0.801]
[1718021501100,0.25065805,3672.9,3672.5,0.801]
[1718021503592,0.25065805,3672.9,3672.5,3.52387]
[1718021504131,0.25065805,3672.9,3672.2,2.72309]
[1718021504307,0.25065805,3672.9,3672.3,3.0]
[1718021505308,0.25065805,3672.9,3672.3,5.72302]
[1718021508534,0.25065805,3672.9,3672.4,0.801]
[1718021510362,0.25065805,3672.9,3672.4,3.52394]
[1718021510545,0.25065805,3672.9,3672.4,4.176334]
[1718021511100,0.25065805,3672.9,3672.6,2.72285]
[1718021511496,0.25065805,3672.9,3672.7,3.52372]
[1718021511733,8.1666,3673.2,3672.9,2.72257]
[1718021511900,8.1666,3673.2,3673.1,0.801]
[1718021512101,8.1666,3673.2,3673.1,3.52349]
[1718021513002,8.1666,3673.2,3673.1,2.72249]
[1718021514396,8.41725805,3673.2,3673.1,2.72249]
[1718021521427,8.41725805,3673.2,3672.8,2.72264]
[1718021521735,8.1666,3673.2,3672.8,2.72264]
[1718021521935,0.25065805,3673.1,3672.8,2.72264]
[1718021527747,0.25065805,3673.1,3672.5,10.80386]
[1718021527923,0.25065805,3673.1,3672.6,3.0]
[1718021532960,2.3758,3672.9,3672.2,5.02549]
[1718021533163,2.3758,3672.9,3672.3,3.801]
[1718021535182,2.3758,3672.9,3672.4,2.723]
[1718021535355,2.3758,3672.9,3672.5,0.801]
[1718021536039,2.72257,3673.0,3672.5,0.801]
[1718021536227,0.25065805,3672.8,3672.5,0.801]
[1718021536430,0.25065805,3672.8,3672.6,2.72286]
[1718021536634,8.1666,3673.2,3672.7,0.801]
[1718021537772,8.1666,3673.2,3672.8,2.72271]
[1718021544282,0.25065805,3673.1,3672.8,2.72271]
[1718021554706,0.25065805,3673.1,3672.8,5.20441]
[1718021558102,0.25065805,3673.1,3672.8,2.72271]
[1718021560182,0.25065805,3673.1,3672.8,2.70971]
[1718021569685,0.25065805,3673.1,3672.5,3.52387]
[1718021571932,8.1666,3673.2,3672.5,3.52387]
[1718021572306,0.25065805,3673.1,3672.7,2.72274]
[1718021572719,8.1666,3673.2,3672.7,2.72274]
[1718021573122,0.25065805,3673.1,3672.7,2.72274]
[1718021573297,0.25065805,3673.1,3672.5,0.801]
[1718021573499,8.1666,3673.2,3672.5,0.801]
[1718021573711,0.25065805,3673.0,3672.5,0.801]
[1718021574032,0.25065805,3672.9,3672.5,0.801]
[1718021574251,8.1666,3673.2,3672.5,0.801]
[1718021574529,0.25065805,3672.8,3672.7,0.801]
[1718021574727,8.1666,3673.2,3672.7,0.801]
[1718021574895,0.25065805,3672.8,3672.7,0.801]
[1718021575096,8.1666,3673.2,3672.7,0.801]
[1718021575290,0.25065805,3672.8,3672.7,0.801]
[1718021575526,8.1666,3673.2,3672.7,0.801]
[1718021575729,0.25065805,3672.8,3672.7,0.801]
[1718021575930,8.1666,3673.2,3672.5,2.72287]
[1718021576131,0.25065805,3672.8,3672.6,0.801]
[1718021576296,8.1666,3673.2,3672.6,0.801]
[1718021576495,0.25065805,3672.7,3672.6,0.801]
[1718021576710,8.1666,3673.2,3672.6,0.801]
[1718021576914,0.25065805,3672.7,3672.6,0.801]
[1718021577132,8.1666,3673.2,3672.6,0.801]
[1718021577331,0.25065805,3672.7,3672.6,0.801]
[1718021577537,8.1666,3673.2,3672.6,0.801]
[1718021577741,0.25065805,3672.7,3672.6,0.801]
[1718021577897,8.1666,3673.2,3672.6,0.801]
[1718021578307,0.25065805,3673.1,3672.6,0.801]
[1718021578615,0.25065805,3673.1,3672.6,3.52379]
[1718021582255,2.3085,3673.0,3672.4,3.01708399]
[1718021582410,2.3085,3673.0,3672.4,2.723]
[1718021582604,0.25065805,3672.9,3672.4,3.524]
[1718021583444,0.25065805,3672.9,3672.4,2.723]
[1718021583643,2.4118,3672.7,3672.1,3.01729348]
[1718021583943,8.1666,3672.6,3672.1,2.72318]
[1718021584160,8.1666,3672.6,3672.0,7.28]
[1718021584161,8.41725805,3672.6,3672.0,7.28]
[1718021584342,9.85253685,3672.6,3672.0,7.28]
[1718021586810,9.85253685,3672.6,3671.9,0.801]
[1718021587132,9.85253685,3672.6,3671.9,3.801]
[1718021587811,9.85253685,3672.6,3672.0,2.72329]
[1718021588216,9.85253685,3672.6,3672.0,3.52429]
[1718021590756,9.85253685,3672.6,3672.0,2.72329]
[1718021591045,9.85253685,3672.6,3672.0,3.52429]
[1718021594717,1.49870669,3672.5,3672.0,3.52429]
[1718021594922,1.49870669,3672.5,3672.0,2.72329]
[1718021595451,0.25065805,3672.4,3672.0,2.72329]
[1718021595837,8.1666,3672.6,3672.0,2.72329]
[1718021596155,0.25065805,3672.3,3672.0,2.72329]
[1718021596356,8.1666,3672.6,3672.0,2.72329]
[1718021596651,0.70042777,3672.5,3672.0,2.72329]
[1718021596860,0.25065805,3672.5,3672.0,2.72329]
[1718021598154,0.25065805,3672.5,3672.2,2.72315]
[1718021610785,8.1666,3672.4,3672.2,2.72315]
[1718021611283,0.25065805,3672.3,3672.2,2.72315]
[1718021614584,0.25065805,3672.3,3672.2,13.66627]
[1718021615082,8.1666,3672.4,3672.3,2.4968]
[1718021615250,8.1666,3672.4,3672.3,6.2978]
[1718021634105,8.41725805,3672.4,3672.3,6.2978]
[1718021639384,8.41725805,3672.4,3672.3,3.0]
[1718021639585,8.41725805,3672.4,3672.3,3.801]
[1718021639798,8.41725805,3672.4,3672.3,4.998047]
[1718021641825,8.41725805,3672.4,3672.3,3.801]
[1718021644604,2.3147,3672.3,3672.2,2.72315]
[1718021644805,2.3147,3672.3,3672.2,3.52415]
[1718021645614,2.56535805,3672.3,3672.2,3.52415]
[1718021646522,3.63855386,3672.3,3672.2,2.72315]
[1718021663352,0.25065805,3672.3,3672.2,2.72315]
[1718021678343,0.25065805,3672.3,3672.2,5.44631]
[1718021684576,0.25065805,3672.3,3672.2,2.72315]
[1718021702337,0.25065805,3672.3,3671.5,9.695]
[1718021702338,8.41725805,3672.3,3672.0,2.7233]
[1718021702525,1.42753981,3672.2,3672.0,2.7233]
[1718021702731,8.1666,3672.1,3672.0,2.7233]
[1718021703132,8.41725805,3672.1,3672.0,2.7233]
[1718021705770,8.41725805,3672.1,3671.7,2.72346]
[1718021706752,10.68785805,3672.1,3671.7,2.72346]
[1718021706955,1.48384879,3672.0,3671.7,2.72346]
[1718021707533,2.2706,3671.8,3671.5,7.28]
[1718021707746,8.1666,3671.7,3671.5,7.28]
[1718021708041,0.25065805,3671.6,3671.5,7.28]
[1718021708243,1.39954386,3671.6,3671.5,7.28]
[1718021710033,9.56614386,3671.6,3671.5,7.28]
[1718021712642,9.56614386,3671.6,3671.4,2.72374]
[1718021712871,9.56614386,3671.6,3671.4,2.69774]
[1718021713213,8.41725805,3671.6,3671.4,2.69774]
[1718021715941,8.40641562,3671.6,3671.4,2.69774]
[1718021719269,8.40641562,3671.6,3671.1,3.52491]
[1718021719825,8.40641562,3671.6,3671.3,2.72381]
[1718021725687,2.4236,3671.5,3671.0,2.72398]
[1718021725912,11.14052522,3671.4,3670.7,10.0042]
[1718021727083,0.801,3671.3,3670.7,10.0042]
[1718021727401,2.3437,3671.1,3670.7,10.0042]
[1718021727588,8.1666,3671.0,3670.7,10.0042]
[1718021727998,0.25016522,3670.9,3670.7,10.0042]
[1718021728203,8.1666,3670.8,3670.7,10.0042]
[1718021728411,8.1666,3670.8,3670.7,2.7242]
[1718021728618,8.41676522,3670.8,3670.7,2.7242]
[1718021731485,8.41676522,3670.8,3670.7,3.5252]
[1718021733099,8.41676522,3670.8,3670.7,4.11631]
[1718021735298,8.41676522,3670.8,3670.7,6.41901]
[1718021739625,8.41676522,3670.8,3670.7,9.14328]
[1718021745639,8.1666,3670.8,3670.7,9.14328]
[1718021745940,8.41676522,3670.8,3670.7,9.14328]
[1718021761666,8.41676522,3670.8,3670.7,6.24947]
[1718021761872,8.1666,3670.8,3670.7,6.24947]
[1718021762065,8.41676522,3670.8,3670.7,6.24947]
[1718021769264,8.39076522,3670.8,3670.7,6.24947]
[1718021773356,8.39076522,3670.8,3670.7,5.44847]
[1718021773652,8.39076522,3670.8,3670.7,6.24947]
[1718021778081,8.39076522,3670.8,3670.7,5.44847]
[1718021778299,8.39076522,3670.8,3670.7,6.24947]
[1718021787409,8.39076522,3670.8,3670.7,8.97374]
[1718021791470,8.1406,3670.8,3670.7,8.97374]
[1718021791831,8.39076522,3670.8,3670.7,8.97374]
[1718021792159,8.39076522,3670.8,3670.7,10.29807543]
[1718021792709,8.39076522,3670.8,3670.7,8.97374]
[1718021799634,8.39076522,3670.8,3670.7,12.82998899]
[1718021799836,5.22e-06,3670.8,3670.7,17.84065899]
[1718021800040,2.4031,3672.0,3671.6,2.7236]
[1718021800243,2.4031,3672.0,3671.9,0.801]
[1718021803030,2.4031,3672.0,3671.7,2.72351]
[1718021803238,2.4031,3672.0,3671.7,3.52451]
[1718021803640,2.4031,3672.0,3671.9,0.801]
[1718021804415,2.4031,3672.0,3671.7,3.52451]
[1718021807411,2.4387,3672.6,3671.9,0.801]
[1718021807610,2.4387,3672.6,3672.2,0.801]
[1718021808039,0.23879407,3672.5,3672.2,0.801]
[1718021808241,0.23879407,3672.5,3672.4,2.723]
[1718021810031,2.4765,3672.8,3672.7,2.72279]
[1718021810231,2.72415,3672.8,3672.7,2.72279]
[1718021810951,10.89245,3672.8,3672.7,2.72279]
[1718021814346,11.13124407,3672.8,3672.7,2.72279]
[1718021820343,10.88359407,3672.8,3672.7,2.72279]
[1718021825225,8.40709407,3672.8,3672.7,2.72279]
[1718021830674,10.73109407,3672.8,3672.7,2.72279]
[1718021849410,10.73109407,3672.8,3672.4,2.72297]
[1718021864196,8.40709407,3672.8,3672.6,2.72286]
[1718021864794,8.40709407,3672.8,3672.6,3.305116]
[1718021871325,8.40709407,3672.8,3672.6,2.72286]
[1718021880559,8.40709407,3672.8,3671.5,1.42804996]
[1718021880560,3.167,3672.7,3671.8,0.85772583]
[1718021880860,8.1683,3672.6,3672.2,2.72309]
[1718021881017,8.40709407,3672.6,3672.4,2.72299]
[1718021883761,8.40709407,3672.6,3672.4,5.03129]
[1718021884075,8.40709407,3672.6,3672.5,0.801]
[1718021885060,8.40709407,3672.6,3672.4,5.03129]
[1718021887273,8.40709407,3672.6,3672.5,0.801]
[1718021887874,8.1683,3672.6,3672.5,0.801]
[1718021888225,8.40709407,3672.6,3672.5,0.801]
[1718021905460,8.40709407,3672.6,3672.4,2.72299]
[1718021907656,2.4227,3672.5,3672.4,2.72299]
[1718021907892,10.591,3672.5,3672.4,2.72299]
[1718021908097,10.82979407,3672.5,3672.4,2.72299]
[1718021909959,10.82979407,3672.5,3672.4,5.798399]
[1718021909960,8.40709407,3672.5,3672.4,5.798399]
[1718021910274,8.40709407,3672.5,3672.4,13.889009]
[1718021910676,8.40709407,3672.5,3672.4,15.03264344]
[1718021911374,8.40709407,3672.5,3672.4,13.889009]
[1718021911893,8.1683,3672.5,3672.4,13.889009]
[1718021912257,8.40709407,3672.5,3672.4,13.889009]
[1718021913584,8.40709407,3672.5,3672.4,14.74505185]
[1718021913975,8.1683,3672.5,3672.4,14.64505185]
[1718021914387,8.40709407,3672.5,3672.4,14.64505185]
[1718021916502,8.40709407,3672.5,3672.4,13.789009]
[1718021917794,8.1683,3672.5,3672.4,14.64505185]
[1718021918199,4.07e-06,3672.5,3672.4,14.64505185]
[1718021918381,9.98e-06,3672.5,3672.4,14.64505185]
[1718021918585,2.3146,3673.9,3673.7,2.72198]
[1718021918771,2.54606,3673.9,3673.7,2.72198]
[1718021918971,0.21757952,3673.8,3673.7,2.72198]
[1718021920121,0.21757952,3673.8,3673.7,10.83093]
[1718021920280,2.2528,3674.7,3674.3,2.72156]
[1718021920622,0.21757952,3674.6,3674.3,3.52256]
[1718021920972,2.2528,3674.7,3674.3,3.52256]
[1718021921171,1.71240978,3675.6,3674.7,2.72128]
[1718021921172,2.3691,3675.2,3674.7,2.72128]
[1718021921403,0.23691,3675.1,3674.7,2.72128]
[1718021922216,0.23691,3675.1,3674.7,3.52228]
[1718021922428,2.3691,3675.2,3674.9,3.52211]
[1718021922601,2.3559,3675.8,3674.9,3.52211]
[1718021922774,2.3559,3675.8,3675.1,3.52196]
[1718021922968,0.50763,3675.7,3675.3,0.801]
[1718021923404,2.3559,3675.8,3675.3,3.52181]
[1718021923714,8.162,3675.7,3675.3,3.52181]
[1718021925176,8.162,3675.7,3675.3,2.72081]
[1718021926096,8.162,3675.7,3675.4,0.801]
[1718021926272,8.162,3675.7,3675.6,0.801]
[1718021926811,8.162,3675.7,3675.5,2.72071]
[1718021928111,8.162,3675.7,3675.6,0.801]
[1718021929387,8.162,3675.7,3675.5,2.72071]
[1718021929591,0.8162,3675.6,3675.5,2.72071]
[1718021931328,8.162,3675.7,3675.5,2.72071]
[1718021933983,8.162,3675.7,3675.6,0.801]
[1718021934405,8.37957952,3675.7,3675.6,0.801]
[1718021944531,8.37957952,3675.7,3675.6,3.801]
[1718021945138,8.162,3675.7,3675.6,3.801]
[1718021945438,8.162,3675.7,3675.6,4.972052]
[1718021945600,8.37957952,3675.7,3675.6,13.133972]
[1718021946227,8.37957952,3675.7,3675.6,15.388372]
[1718021950387,8.162,3675.7,3675.6,15.388372]
[1718021950818,8.36872525,3675.7,3675.6,15.388372]
[1718021952741,8.36872525,3675.7,3675.6,15.362372]
[1718021952911,8.36872525,3675.7,3675.6,15.388372]
[1718021954129,8.36872525,3675.7,3675.6,11.866732]
[1718021954295,8.36872525,3675.7,3675.6,12.667732]
[1718021955008,8.36872525,3675.7,3675.6,15.388372]
[1718021955231,8.36872525,3675.7,3675.6,12.667732]
[1718021955529,8.36872525,3675.7,3675.6,11.866732]
[1718021955709,8.36872525,3675.7,3675.6,12.667732]
[1718021956031,8.36872525,3675.7,3675.6,15.388372]
[1718021956331,8.36872525,3675.7,3675.6,12.667732]
[1718021956898,8.36872525,3675.7,3675.6,15.388372]
[1718021957325,8.36872525,3675.7,3675.6,12.667732]
[1718021957525,8.36872525,3675.7,3675.6,11.866732]
[1718021957695,8.36872525,3675.7,3675.6,10.413332]
[1718021960954,8.36872525,3675.7,3675.6,5.72064]
[1718021961321,8.162,3675.7,3675.6,5.72064]
[1718021961523,8.36872525,3675.7,3675.6,5.72064]
[1718021963309,8.36872525,3675.7,3675.3,2.72082]
[1718021963515,2.3489,3675.6,3675.3,2.72082]
[1718021963916,2.3489,3675.6,3675.0,7.28]
[1718021963917,0.20672525,3675.5,3675.0,10.00105]
[1718021964113,8.36872525,3675.5,3675.0,10.80205]
[1718021964551,8.36872525,3675.5,3675.0,10.00105]
[1718021965627,12.51337078,3675.5,3674.6,10.00132]
[1718021965814,12.51337078,3675.5,3674.7,0.801]
[1718021966148,12.51337078,3675.5,3674.7,3.801]
[1718021967012,2.4461,3675.4,3674.7,3.0]
[1718021967353,9.94477233,3675.3,3674.7,3.801]
[1718021967844,8.36872525,3675.3,3674.8,2.72123]
[1718021968049,8.36872525,3675.3,3675.0,2.72108]
[1718021968408,8.36872525,3675.3,3675.1,0.801]
[1718021969530,8.36872525,3675.3,3675.0,2.72108]
[1718021976860,8.36872525,3675.3,3674.7,6.52225]
[1718021977103,8.36872525,3675.3,3674.7,5.72125]
[1718021977303,0.801,3675.1,3674.6,7.28]
[1718021977456,10.5105,3675.0,3674.6,7.28]
[1718021977660,10.5105,3675.0,3674.4,2.72147]
[1718021977861,0.20672525,3674.9,3674.4,2.72147]
[1718021978056,8.162,3674.8,3674.4,2.72147]
[1718021978897,0.20672525,3674.7,3674.4,2.72147]
[1718021979281,8.162,3674.8,3674.4,2.72147]
[1718021979897,0.20672525,3674.7,3674.4,2.72147]
[1718021980107,8.162,3674.6,3674.4,2.72147]
[1718021980603,0.20672525,3674.5,3674.4,2.72147]
[1718021983914,0.20672525,3674.5,3674.4,7.174717]
[1718021984210,0.20672525,3674.5,3674.4,9.601017]
[1718021984403,8.162,3674.6,3674.4,9.601017]
[1718021984602,8.162,3674.6,3674.5,3.0]
[1718022037278,2.4445,3675.6,3674.9,2.3089]
[1718022037575,5.23359385,3676.6,3675.9,2.7204]
[1718022037784,3.52097,3676.6,3675.9,2.7204]
[1718022037944,2.4445,3676.5,3676.1,2.72026]
[1718022038152,2.4445,3676.5,3676.1,3.52126]
[1718022038332,8.1604,3676.4,3676.1,3.52126]
[1718022039339,0.25315,3676.3,3676.1,3.52126]
[1718022042076,0.25315,3676.3,3676.2,3.0]
[1718022044072,0.25315,3676.3,3676.2,3.801]
[1718022044472,8.1604,3676.4,3676.3,2.72012]
[1718022044868,8.41355,3676.4,3676.3,2.72012]
[1718022062092,8.41355,3676.4,3676.2,3.0]
[1718022062298,2.3485,3676.3,3676.1,3.0]
[1718022062835,0.25315,3676.2,3676.1,3.0]
[1718022063003,2.3485,3676.3,3676.1,3.0]
[1718022063208,0.25315,3676.2,3676.1,3.0]
[1718022063407,2.3485,3676.3,3676.1,3.0]
[1718022063713,0.25315,3676.2,3676.1,3.0]
[1718022064150,2.3485,3676.3,3676.1,3.0]
[1718022064296,0.25315,3676.2,3676.1,3.0]
[1718022064728,2.3485,3676.3,3676.1,3.0]
[1718022064898,0.25315,3676.2,3676.1,3.0]
[1718022065099,2.3485,3676.3,3676.1,3.0]
[1718022065304,0.25315,3676.2,3676.1,3.0]
[1718022065515,2.3485,3676.3,3676.1,3.0]
[1718022065722,0.25315,3676.2,3676.1,3.0]
[1718022065923,2.3485,3676.3,3676.1,3.0]
[1718022066128,0.25315,3676.2,3676.1,3.0]
[1718022066309,2.3485,3676.3,3676.1,3.0]